bitfinex/quotes_BTCUSD_20241120
["timestamp","ask_amount","ask_price","bid_price","bid_amount"]
[1732064107954,0.01,92082.0,92079.0,0.0440193]
[1732064108195,0.01,92082.0,92071.0,0.1]
[1732064108429,0.01,92082.0,92071.0,0.34317908]
[1732064108660,0.01,92082.0,92073.0,0.1]
[1732064108901,0.01,92082.0,92073.0,0.34317908]
[1732064110360,0.10906255,92088.0,92075.0,0.1]
[1732064110599,0.10906255,92088.0,92074.0,0.1]
[1732064111109,0.11906255,92088.0,92074.0,0.1]
[1732064111314,0.11906255,92088.0,92073.0,0.1]
[1732064111555,0.01,92087.0,92073.0,0.1]
[1732064111776,0.11906255,92088.0,92073.0,0.1]
[1732064111997,0.01,92087.0,92073.0,0.34319812]
[1732064112263,0.1297908,92094.0,92076.0,0.0804]
[1732064112514,0.1397908,92094.0,92077.0,0.10136957]
[1732064112759,0.1397908,92094.0,92077.0,0.34456769]
[1732064113012,0.1397908,92094.0,92077.0,0.34319812]
[1732064113760,0.1397908,92094.0,92078.0,0.24319812]
[1732064114012,0.1397908,92094.0,92080.0,0.1]
[1732064114701,0.1397908,92094.0,92081.0,0.24319812]
[1732064114946,0.1397908,92094.0,92082.0,0.1]
[1732064115400,0.1388,92094.0,92082.0,0.1]
[1732064116074,0.1388,92094.0,92079.0,0.1]
[1732064117622,0.1388,92094.0,92077.0,0.1]
[1732064118802,0.01,92094.0,92078.0,0.29126719]
[1732064119043,0.01,92094.0,92079.0,0.1]
[1732064119283,0.01,92094.0,92080.0,0.00136957]
[1732064120416,0.01,92094.0,92079.0,0.00136957]
[1732064120907,0.0108541,92094.0,92079.0,0.10136957]
[1732064121154,0.0108541,92094.0,92079.0,0.00136957]
[1732064121638,0.0008541,92094.0,92079.0,0.00136957]
[1732064122084,0.0008541,92094.0,92082.0,0.1]
[1732064122311,0.0008541,92094.0,92083.0,0.00136957]
[1732064123504,0.0008541,92094.0,92082.0,0.1]
[1732064123733,0.0008541,92094.0,92081.0,0.1]
[1732064124491,0.0008541,92094.0,92080.0,0.34320257]
[1732064125616,0.0008541,92094.0,92082.0,0.34320257]
[1732064125835,0.0008541,92094.0,92082.0,0.1]
[1732064126730,0.0008541,92094.0,92080.0,0.1]
[1732064127802,0.0008541,92094.0,92079.0,0.1]
[1732064128889,0.0008541,92094.0,92081.0,0.24322998]
[1732064129102,0.0008541,92094.0,92083.0,0.1]
[1732064129326,0.0008541,92094.0,92084.0,0.01523947]
[1732064129546,0.0008541,92094.0,92085.0,0.01523947]
[1732064129758,0.0008541,92094.0,92086.0,0.01523947]
[1732064129968,0.0008541,92094.0,92087.0,0.01523947]
[1732064130174,0.0008541,92094.0,92088.0,0.01523947]
[1732064130414,0.0491,92093.0,92089.0,0.01524307]
[1732064130828,0.0491,92093.0,92083.0,0.00136944]
[1732064131040,0.0491,92093.0,92082.0,0.1]
[1732064131512,0.0491,92093.0,92082.0,0.34323989]
[1732064132610,0.0491,92093.0,92082.0,0.1]
[1732064133272,0.0491,92093.0,92081.0,0.1]
[1732064133704,0.01,92090.0,92082.0,0.01524448]
[1732064133961,0.01,92090.0,92083.0,0.01524448]
[1732064134176,0.0491,92089.0,92084.0,0.01524448]
[1732064134375,0.0491,92089.0,92085.0,0.01524448]
[1732064134582,0.0491,92089.0,92086.0,0.01524448]
[1732064134802,0.0491,92089.0,92087.0,0.01524448]
[1732064135032,0.0491,92089.0,92088.0,0.01524448]
[1732064137526,0.25257734,92089.0,92088.0,0.01524448]
[1732064137749,0.11906255,92089.0,92073.0,0.14494221]
[1732064137951,0.0491,92087.0,92072.0,0.1]
[1732064138108,0.0491,92085.0,92072.0,0.1]
[1732064138319,0.00271512,92084.0,92072.0,0.1]
[1732064139384,0.15816255,92085.0,92073.0,0.24327356]
[1732064139565,0.01,92079.0,92074.0,0.1]
[1732064139800,0.15816255,92085.0,92074.0,0.1]
[1732064140616,0.00271513,92084.0,92074.0,0.1]
[1732064140846,0.01,92079.0,92074.0,0.1]
[1732064141306,0.01,92079.0,92074.0,0.24336119]
[1732064141537,0.01,92079.0,92075.0,0.1]
[1732064142004,0.01,92082.0,92075.0,0.1]
[1732064142232,0.01,92079.0,92075.0,0.1]
[1732064143409,0.01,92079.0,92074.0,0.34336403]
[1732064145292,0.082,92078.0,92076.0,0.1]
[1732064145518,0.0454,92077.0,92074.0,0.1]
[1732064147639,0.0454,92077.0,92072.0,0.14441401]
[1732064148108,0.0454,92077.0,92072.0,0.1]
[1732064148320,0.0454,92077.0,92072.0,0.34336403]
[1732064148524,0.0454,92077.0,92072.0,0.1]
[1732064149299,0.0454,92077.0,92072.0,0.34336403]
[1732064149465,0.0454,92077.0,92071.0,0.1]
[1732064149682,0.0454,92077.0,92070.0,0.1]
[1732064149881,0.0454,92077.0,92070.0,0.34336403]
[1732064150515,0.0454,92077.0,92070.0,0.1]
[1732064150757,0.0454,92077.0,92071.0,0.1]
[1732064150879,0.0454,92077.0,92071.0,0.34344619]
[1732064151291,0.0454,92077.0,92071.0,0.1]
[1732064151727,0.0454,92077.0,92071.0,0.34344619]
[1732064152613,0.0454,92077.0,92071.0,0.1]
[1732064155096,0.0454,92077.0,92069.0,0.14318382]
[1732064155305,0.0454,92077.0,92068.0,0.1017082]
[1732064155539,0.01,92069.0,92068.0,0.0017082]
[1732064155824,0.1374,92069.0,92068.0,0.0017082]
[1732064164049,0.1374,92069.0,92045.0,0.1]
[1732064164256,0.00271554,92068.0,92050.0,0.04437542]
[1732064164455,0.00271554,92068.0,92032.0,0.29175612]
[1732064164675,0.00271554,92068.0,92049.0,0.0449036]
[1732064164880,0.00271554,92068.0,92049.0,0.001708]
[1732064165628,0.0009835,92069.0,92050.0,0.24023426]
[1732064165843,0.0008541,92079.0,92052.0,0.1298]
[1732064166058,0.01,92074.0,92053.0,0.1]
[1732064166262,0.0817,92073.0,92053.0,0.1]
[1732064168870,0.0463,92072.0,92053.0,0.1]
[1732064169917,0.0463,92072.0,92053.0,0.1017082]
[1732064174369,0.01,92066.0,92054.0,0.00137164]
[1732064175053,0.00271527,92071.0,92057.0,0.1]
[1732064175268,0.0752,92084.0,92059.0,0.1]
[1732064175488,0.0752,92084.0,92061.0,0.1]
[1732064175708,0.0752,92084.0,92062.0,0.10906255]
[1732064175920,0.0752,92084.0,92063.0,0.3430771]
[1732064176232,0.0752,92084.0,92065.0,0.1]
[1732064176387,0.01,92083.0,92066.0,0.10906255]
[1732064176605,0.01,92083.0,92067.0,0.1]
[1732064176816,0.01,92080.0,92067.0,0.1]
[1732064178504,0.00452161,92080.0,92067.0,0.1]
[1732064179154,0.0752,92084.0,92067.0,0.1]
[1732064179974,0.07972161,92084.0,92067.0,0.14386773]
[1732064180178,0.06946883,92084.0,92067.0,0.14386773]
[1732064180622,0.00452161,92080.0,92067.0,0.14386773]
[1732064181431,0.00452161,92080.0,92067.0,0.04386773]
[1732064181634,0.00452161,92080.0,92064.0,0.34323091]
[1732064181854,0.00452161,92080.0,92064.0,0.1]
[1732064181855,0.0586,92078.0,92064.0,0.1]
[1732064182051,0.0586,92078.0,92064.0,0.04495045]
[1732064182341,0.0586,92078.0,92061.0,0.1]
[1732064182869,0.0586,92078.0,92060.0,0.1]
[1732064183277,0.0752,92077.0,92060.0,0.34323091]
[1732064183482,0.0752,92077.0,92060.0,0.1]
[1732064184722,0.000854,92080.0,92066.0,0.24323091]
[1732064184924,0.000854,92080.0,92069.0,0.34323091]
[1732064185141,0.000854,92080.0,92067.0,0.21043278]
[1732064185142,0.000854,92080.0,92070.0,0.24460108]
[1732064185341,0.000854,92080.0,92071.0,0.1]
[1732064185567,0.000854,92080.0,92072.0,0.00137017]
[1732064188310,0.000854,92080.0,92073.0,0.24323091]
[1732064188519,0.000854,92080.0,92075.0,0.1]
[1732064188723,0.000854,92080.0,92077.0,0.1]
[1732064189124,0.000854,92080.0,92077.0,0.10137]
[1732064190420,0.000854,92080.0,92077.0,0.34466171]
[1732064190626,0.000854,92080.0,92077.0,0.34329171]
[1732064192288,0.000854,92080.0,92077.0,0.1]
[1732064192493,0.000854,92080.0,92077.0,0.10137001]
[1732064193214,0.000854,92080.0,92077.0,0.00137001]
[1732064193416,0.000854,92080.0,92077.0,0.1]
[1732064193646,0.000854,92080.0,92077.0,0.10137001]
[1732064194110,0.000854,92080.0,92077.0,0.05137001]
[1732064194588,0.000854,92080.0,92077.0,0.00137001]
[1732064194841,0.000854,92080.0,92074.0,0.00137001]
[1732064196130,0.000854,92080.0,92074.0,0.10137001]
[1732064197317,0.000854,92080.0,92074.0,0.00137001]
[1732064197903,0.000854,92080.0,92073.0,0.1]
[1732064200480,0.000854,92080.0,92072.0,0.14419414]
[1732064202145,0.000854,92080.0,92073.0,0.00137001]
[1732064203927,0.000854,92080.0,92076.0,0.1]
[1732064204128,0.000854,92080.0,92077.0,0.00137001]
[1732064204129,0.047154,92080.0,92077.0,0.00137001]
[1732064204339,0.047154,92080.0,92076.0,0.1]
[1732064206027,0.047154,92080.0,92073.0,0.00137024]
[1732064206824,0.047154,92080.0,92076.0,0.001708]
[1732064207022,0.0320026,92080.0,92076.0,0.001708]
[1732064207452,0.000854,92084.0,92076.0,0.001708]
[1732064207653,0.000854,92084.0,92077.0,0.00137001]
[1732064210103,0.047154,92084.0,92077.0,0.00137001]
[1732064210284,0.047154,92084.0,92076.0,0.0030781]
[1732064211134,0.0762,92083.0,92076.0,0.001708]
[1732064211721,0.047154,92084.0,92076.0,0.001708]
[1732064211722,0.01,92077.0,92076.0,0.001708]
[1732064212086,0.1325,92077.0,92076.0,0.001708]
[1732064213312,0.1225,92077.0,92076.0,0.001708]
[1732064213515,0.1325,92077.0,92076.0,0.001708]
[1732064214100,0.1225,92077.0,92076.0,0.001708]
[1732064216631,0.1325,92077.0,92076.0,0.001708]
[1732064217400,0.1225,92077.0,92076.0,0.001708]
[1732064218486,0.0762,92077.0,92076.0,0.001708]
[1732064222610,0.1325,92077.0,92076.0,0.001708]
[1732064225158,0.12164032,92077.0,92076.0,0.001708]
[1732064226907,0.23070287,92077.0,92076.0,0.001708]
[1732064228026,0.25822448,92077.0,92076.0,0.001708]
[1732064228225,0.26822448,92077.0,92076.0,0.001708]
[1732064231117,0.14432161,92064.0,92063.0,0.04396934]
[1732064231314,0.14432161,92064.0,92053.0,0.0017082]
[1732064231315,0.00452161,92060.0,92056.0,0.1]
[1732064231597,0.01,92057.0,92056.0,0.1]
[1732064231840,0.24886255,92057.0,92056.0,0.1]
[1732064232458,0.24886255,92057.0,92054.0,0.04595022]
[1732064232459,0.16886255,92057.0,92054.0,0.04595022]
[1732064232685,0.01,92055.0,92054.0,0.04595022]
[1732064232895,0.11906255,92055.0,92054.0,0.04595022]
[1732064235731,0.12358416,92055.0,92054.0,0.04595022]
[1732064235943,0.20358416,92055.0,92054.0,0.04595022]
[1732064236223,0.25338416,92055.0,92054.0,0.04595022]
[1732064251131,0.25338416,92055.0,92026.0,0.00618311]
[1732064251337,0.01,92047.0,92026.0,0.00618311]
[1732064252159,0.08,92055.0,92047.0,0.1]
[1732064252365,0.05182161,92061.0,92027.0,0.11454094]
[1732064252366,0.01,92057.0,92028.0,0.10547839]
[1732064252565,0.05182161,92061.0,92034.0,0.00547839]
[1732064252566,0.0473,92061.0,92034.0,0.00547839]
[1732064252767,0.00452161,92067.0,92037.0,0.00547839]
[1732064252987,0.00452161,92067.0,92039.0,0.10547839]
[1732064253210,0.01,92063.0,92041.0,0.1]
[1732064253413,0.0755,92070.0,92043.0,0.1]
[1732064253414,0.00452161,92068.0,92043.0,0.1]
[1732064253665,0.00271554,92072.0,92043.0,0.1]
[1732064253666,0.01,92071.0,92045.0,0.1]
[1732064253870,0.00452161,92070.0,92047.0,0.1]
[1732064254074,0.00452161,92070.0,92050.0,0.1238]
[1732064254280,0.00452161,92070.0,92051.0,0.1]
[1732064254692,0.0008545,92055.0,92051.0,0.1]
[1732064256915,0.0008545,92055.0,92051.0,0.14409535]
[1732064257131,0.01,92071.0,92051.0,0.14409535]
[1732064257334,0.01,92077.0,92053.0,0.1]
[1732064257560,0.01,92077.0,92055.0,0.1776]
[1732064258200,0.01,92076.0,92055.0,0.1776]
[1732064258403,0.01,92077.0,92055.0,0.28666255]
[1732064265889,0.0108545,92077.0,92055.0,0.28666255]
[1732064267002,0.0108545,92077.0,92055.0,0.52928478]
[1732064268263,0.0108545,92077.0,92056.0,0.24262223]
[1732064268513,0.0108545,92077.0,92055.0,0.52928478]
[1732064268839,0.0108545,92077.0,92050.0,0.0447732]
[1732064268840,0.059,92062.0,92052.0,0.1]
[1732064269068,0.059,92062.0,92050.0,0.0447732]
[1732064270378,0.0027156,92061.0,92050.0,0.0447732]
[1732064270584,0.01,92054.0,92050.0,0.0447732]
[1732064270792,0.11177815,92061.0,92050.0,0.0447732]
[1732064270793,0.01,92053.0,92050.0,0.0447732]
[1732064270999,0.01,92051.0,92050.0,0.0447732]
[1732064271621,0.01452161,92051.0,92050.0,0.0447732]
[1732064275490,0.01,92051.0,92050.0,0.0447732]
[1732064277166,0.01,92051.0,92050.0,0.0464818]
[1732064277585,0.012716,92051.0,92050.0,0.0464818]
[1732064281011,0.17530016,92051.0,92050.0,0.0464818]
[1732064288093,0.25320016,92051.0,92050.0,0.0464818]
[1732064288269,0.25048416,92051.0,92050.0,0.0464818]
[1732064292388,0.28348416,92051.0,92050.0,0.0464818]
[1732064292601,0.28348416,92051.0,92050.0,0.0017086]
[1732064295572,0.27348416,92051.0,92050.0,0.0017086]
[1732064295810,0.25048416,92051.0,92050.0,0.0017086]
[1732064302918,0.29348416,92051.0,92050.0,0.0017086]
[1732064304845,0.29548416,92051.0,92050.0,0.0017086]
[1732064305302,0.29348416,92051.0,92050.0,0.0017086]
[1732064305519,0.29548416,92051.0,92050.0,0.0017086]
[1732064305721,0.29348416,92051.0,92050.0,0.0017086]
[1732064306508,0.29548416,92051.0,92050.0,0.0017086]
[1732064307732,0.29348416,92051.0,92050.0,0.0017086]
[1732064307980,0.29548416,92051.0,92050.0,0.0017086]
[1732064308119,0.29348416,92051.0,92050.0,0.0017086]
[1732064308964,0.29548416,92051.0,92050.0,0.0017086]
[1732064309162,0.29348416,92051.0,92050.0,0.0017086]
[1732064310231,0.29548416,92051.0,92050.0,0.0017086]
[1732064313336,0.29348416,92051.0,92050.0,0.0017086]
[1732064314654,0.29548416,92051.0,92050.0,0.0017086]
[1732064314857,0.39221193,92051.0,92050.0,0.0017086]
[1732064315098,0.39028233,92051.0,92050.0,0.0017086]
[1732064315346,0.29348416,92051.0,92050.0,0.0017086]
[1732064315807,0.44068664,92051.0,92050.0,0.0017086]
[1732064316303,0.29548416,92051.0,92050.0,0.0017086]
[1732064316522,0.01,92027.0,92026.0,0.00070472]
[1732064316743,0.12358416,92027.0,92026.0,0.00070472]
[1732064318626,0.12630116,92027.0,92026.0,0.04558442]
[1732064319074,0.12630116,92027.0,92026.0,0.00070472]
[1732064321171,0.13630116,92027.0,92026.0,0.00070472]
[1732064321732,0.13358416,92027.0,92026.0,0.00070472]
[1732064321933,0.26448416,92027.0,92026.0,0.00070472]
[1732064322136,0.28748416,92027.0,92026.0,0.00070472]
[1732064324653,0.29748416,92027.0,92026.0,0.00070472]
[1732064324828,0.39424224,92027.0,92026.0,0.00070472]
[1732064325063,0.29748416,92027.0,92026.0,0.00070472]
[1732064325237,0.44262128,92027.0,92026.0,0.00070472]
[1732064325443,0.16658416,92027.0,92026.0,0.00070472]
[1732064325659,0.16930157,92027.0,92026.0,0.00070472]
[1732064326258,0.31428157,92027.0,92026.0,0.00070472]
[1732064326464,0.16658416,92027.0,92026.0,0.00070472]
[1732064326673,0.17130157,92027.0,92026.0,0.00070472]
[1732064327450,0.26792571,92027.0,92026.0,0.00070472]
[1732064327659,0.2652083,92027.0,92026.0,0.00070472]
[1732064328519,0.16858416,92027.0,92026.0,0.00070472]
[1732064328726,0.17130157,92027.0,92026.0,0.00070472]
[1732064330512,0.16930157,92027.0,92026.0,0.00070472]
[1732064331369,0.03452161,92018.0,92014.0,0.04380978]
[1732064331583,0.16658416,92018.0,92014.0,0.04380978]
[1732064335279,0.16658416,92018.0,92013.0,0.0008543]
[1732064335500,0.16930176,92018.0,92013.0,0.0008543]
[1732064337652,0.01,91991.0,91965.0,0.1]
[1732064337891,0.01,91991.0,91966.0,0.10906255]
[1732064339641,0.01,91991.0,91967.0,0.1]
[1732064339876,0.01,91991.0,91988.0,0.1]
[1732064341003,0.01,91991.0,91969.0,0.1]
[1732064341211,0.01,91991.0,91970.0,0.10906255]
[1732064341424,0.01,91991.0,91971.0,0.1]
[1732064341643,0.01,91996.0,91973.0,0.1]
[1732064342082,0.01,91994.0,91973.0,0.1]
[1732064345539,0.01,92001.0,91974.0,0.1]
[1732064345788,0.002,92010.0,91976.0,0.11]
[1732064345789,0.01,92002.0,91976.0,0.11]
[1732064345995,0.01,92002.0,91978.0,0.1]
[1732064346197,0.01,92002.0,91978.0,0.20906255]
[1732064346611,0.00471737,92006.0,91978.0,0.20906255]
[1732064346612,0.01,92005.0,91978.0,0.20906255]
[1732064346807,0.01,92004.0,91978.0,0.20906255]
[1732064347426,8e-07,91996.0,91978.0,0.20906255]
[1732064349205,8e-07,91996.0,91979.0,0.0776]
[1732064349409,8e-07,91996.0,91981.0,0.1232]
[1732064349637,8e-07,91996.0,91979.0,0.1232]
[1732064349782,8e-07,91996.0,91981.0,0.1]
[1732064349983,8e-07,91996.0,91984.0,0.1232]
[1732064350186,8e-07,91996.0,91985.0,0.0456]
[1732064350553,8e-07,91996.0,91984.0,0.03549314]
[1732064356942,0.0455008,91996.0,91983.0,0.0269]
[1732064358022,0.1279,91995.0,91978.0,0.04351449]
[1732064358248,0.13061743,91995.0,91978.0,0.04351449]
[1732064358465,0.13061743,91995.0,91988.0,0.1]
[1732064358735,0.13061743,91995.0,91973.0,0.0269]
[1732064358966,0.1279,91995.0,91973.0,0.0269]
[1732064361543,0.1279,91995.0,91975.0,0.24337857]
[1732064361750,0.1279,91995.0,91976.0,0.1]
[1732064361952,8e-07,91996.0,91979.0,0.0456]
[1732064362566,8e-07,91996.0,91981.0,0.1257]
[1732064362774,8e-07,91996.0,91982.0,0.1456]
[1732064364871,8e-07,91996.0,91977.0,0.1]
[1732064365077,0.1261,91995.0,91977.0,0.1]
[1732064370289,0.0498,91993.0,91969.0,0.049]
[1732064370490,0.0498,91993.0,91969.0,0.15806255]
[1732064370687,0.1249,91992.0,91970.0,0.1]
[1732064371249,0.0498,91991.0,91970.0,0.099999]
[1732064371832,0.0498,91989.0,91969.0,0.049]
[1732064373077,0.0498,91989.0,91981.0,0.24387688]
[1732064373500,0.0498,91989.0,91969.0,0.049]
[1732064373740,0.0498,91989.0,91982.0,0.1]
[1732064374076,0.0498,91989.0,91969.0,0.049]
[1732064378198,0.0498,91989.0,91982.0,0.1]
[1732064380150,0.0794,91988.0,91982.0,0.1]
[1732064380360,0.1279,91988.0,91982.0,0.1]
[1732064380534,0.0485,91987.0,91982.0,0.1]
[1732064382481,0.0485,91987.0,91982.0,0.1008547]
[1732064382949,0.0485,91987.0,91982.0,0.14569258]
[1732064383195,0.0485,91987.0,91982.0,0.38960693]
[1732064383633,0.043722,91985.0,91982.0,0.14569258]
[1732064383874,0.04251299,91985.0,91982.0,0.04569258]
[1732064384013,0.04251299,91985.0,91974.0,0.11194818]
[1732064384643,0.04251299,91985.0,91965.0,0.11906255]
[1732064385509,0.04251299,91985.0,91965.0,0.16419036]
[1732064386039,0.04251299,91985.0,91966.0,0.1]
[1732064386272,0.04251299,91985.0,91968.0,0.1]
[1732064386472,0.0794,91984.0,91968.0,0.1]
[1732064386671,0.0485,91983.0,91968.0,0.1]
[1732064387592,0.0485,91983.0,91964.0,0.1471549]
[1732064387770,0.0485,91983.0,91966.0,0.1]
[1732064388244,0.00471778,91993.0,91966.0,0.1]
[1732064388245,0.01,91990.0,91966.0,0.1]
[1732064388477,0.01,91990.0,91964.0,0.04479757]
[1732064388478,0.012,91979.0,91964.0,0.04479757]
[1732064388700,0.0812,91974.0,91967.0,0.00178465]
[1732064388999,0.0469,91973.0,91965.0,0.00177631]
[1732064389189,0.0469,91971.0,91964.0,0.04479757]
[1732064389363,0.01,91977.0,91964.0,0.04479757]
[1732064389364,0.0812,91970.0,91964.0,0.04479757]
[1732064389568,0.0469,91969.0,91964.0,0.04479757]
[1732064389946,0.0812,91968.0,91964.0,0.04479757]
[1732064397984,0.0812,91968.0,91965.0,0.00181171]
[1732064398731,0.0822,91966.0,91965.0,0.00181171]
[1732064398947,0.0822,91966.0,91964.0,0.04479757]
[1732064398948,0.0459,91965.0,91964.0,0.04479757]
[1732064403430,0.1281,91965.0,91964.0,0.04479757]
[1732064404904,0.1301,91965.0,91964.0,0.04479757]
[1732064405131,0.24716255,91965.0,91964.0,0.04479757]
[1732064405584,0.24916255,91965.0,91964.0,0.04479757]
[1732064407288,0.25916255,91965.0,91964.0,0.04479757]
[1732064407503,0.25916255,91965.0,91964.0,0.0008549]
[1732064408142,0.26916255,91965.0,91964.0,0.0008549]
[1732064408366,0.022,91958.0,91957.0,0.0008541]
[1732064408573,0.2618819,91958.0,91957.0,0.04495186]
[1732064408784,0.25916255,91958.0,91957.0,0.0008541]
[1732064411471,0.25716255,91958.0,91957.0,0.0008541]
[1732064411705,0.25916255,91958.0,91957.0,0.0008541]
[1732064413824,0.24916255,91958.0,91957.0,0.0008541]
[1732064414080,0.24716255,91958.0,91957.0,0.0008541]
[1732064415023,0.24916255,91958.0,91957.0,0.0008541]
[1732064417162,0.24916255,91958.0,91957.0,0.01604062]
[1732064417577,0.24916255,91958.0,91957.0,0.01793544]
[1732064418255,0.19126255,91958.0,91957.0,0.01793544]
[1732064418508,0.0762,91965.0,91957.0,0.01793544]
[1732064418702,0.0762,91971.0,91957.0,0.01604062]
[1732064419062,0.0455,91979.0,91958.0,0.01518652]
[1732064419147,0.0762,91977.0,91958.0,0.0170592]
[1732064419381,0.01,91975.0,91960.0,0.1]
[1732064419594,0.0017096,91981.0,91960.0,0.1]
[1732064419595,0.01,91979.0,91960.0,0.1]
[1732064419818,0.01,91977.0,91961.0,0.00187361]
[1732064420033,0.01,91979.0,91961.0,0.01706013]
[1732064420241,0.01,91979.0,91962.0,0.01518652]
[1732064420450,0.01,91979.0,91961.0,0.00187361]
[1732064420451,0.01,91979.0,91963.0,0.01518652]
[1732064420665,0.01,91976.0,91964.0,0.01518652]
[1732064420885,0.01,91976.0,91965.0,0.01518652]
[1732064421098,0.01,91977.0,91966.0,0.01518652]
[1732064421307,0.0017096,91981.0,91967.0,0.01518652]
[1732064421533,0.0017096,91981.0,91968.0,0.01518652]
[1732064421740,0.0017096,91981.0,91969.0,0.01518652]
[1732064421953,0.0017096,91981.0,91970.0,0.01518652]
[1732064422165,0.0017096,91981.0,91971.0,0.01518652]
[1732064422395,0.0017096,91981.0,91971.0,0.00183777]
[1732064422825,0.0017096,91981.0,91972.0,0.0151968]
[1732064423081,0.0017096,91981.0,91973.0,0.0151968]
[1732064423307,0.0117096,91981.0,91974.0,0.0151968]
[1732064423533,0.01,91979.0,91975.0,0.0151968]
[1732064423747,0.01,91979.0,91976.0,0.0151968]
[1732064423962,0.01,91979.0,91977.0,0.0151968]
[1732064424183,0.0017096,91981.0,91977.0,0.0151968]
[1732064424184,0.0017096,91981.0,91978.0,0.0151968]
[1732064424409,0.0017096,91981.0,91979.0,0.0151968]
[1732064424617,0.0017096,91981.0,91980.0,0.0151968]
[1732064424841,0.0017096,91981.0,91980.0,0.01702623]
[1732064425492,0.0017096,91981.0,91980.0,0.01702402]
[1732064428741,0.24527215,91981.0,91980.0,0.01702402]
[1732064428953,0.24727215,91981.0,91980.0,0.01519459]
[1732064429390,0.0759,91968.0,91951.0,0.0004]
[1732064429604,0.00271841,91967.0,91951.0,0.0004]
[1732064429831,0.01,91961.0,91957.0,0.04563486]
[1732064430254,0.00271863,91960.0,91957.0,0.04563486]
[1732064430256,0.11178118,91960.0,91957.0,0.0008541]
[1732064430472,0.01,91961.0,91957.0,0.0008541]
[1732064430473,0.00271889,91959.0,91957.0,0.0008541]
[1732064430674,0.01,91961.0,91957.0,0.0008541]
[1732064431446,0.01,91965.0,91958.0,0.01519802]
[1732064431692,0.0759,91975.0,91959.0,0.01519802]
[1732064431901,0.01,91979.0,91959.0,0.01519802]
[1732064432152,0.01,91979.0,91960.0,0.01519802]
[1732064432380,0.0017096,91981.0,91961.0,0.11519802]
[1732064432593,0.0017096,91981.0,91963.0,0.1]
[1732064433029,0.0017096,91981.0,91964.0,0.01519802]
[1732064433300,0.0017096,91981.0,91965.0,0.01519802]
[1732064433477,0.0017096,91981.0,91963.0,0.1]
[1732064435540,0.0017096,91981.0,91965.0,0.1]
[1732064435743,0.0017096,91981.0,91967.0,0.1]
[1732064435945,0.0017096,91981.0,91967.0,0.20906255]
[1732064436168,0.0017096,91981.0,91968.0,0.01702197]
[1732064436409,0.0017096,91981.0,91968.0,0.00183303]
[1732064437634,2e-07,91989.0,91970.0,0.1]
[1732064437875,2e-07,91989.0,91970.0,0.20906255]
[1732064438098,2e-07,91989.0,91971.0,0.00182648]
[1732064439464,0.00891355,91997.0,91971.0,0.00291293]
[1732064440176,0.002,91994.0,91971.0,0.00291293]
[1732064440435,0.002,91994.0,91982.0,0.1]
[1732064440660,0.002,91994.0,91983.0,0.01518808]
[1732064440902,0.002,91994.0,91984.0,0.01518808]
[1732064441117,0.002,91994.0,91985.0,0.01518808]
[1732064441351,0.002,91994.0,91985.0,0.00178863]
[1732064441617,0.002,91994.0,91971.0,0.10108645]
[1732064442062,0.0017078,91989.0,91972.0,0.00180068]
[1732064442515,0.0017078,91989.0,91973.0,0.0784]
[1732064442736,0.0017078,91989.0,91974.0,0.1486]
[1732064442960,0.0017078,91989.0,91974.0,0.15039419]
[1732064445721,0.0017078,91989.0,91976.0,0.1]
[1732064446191,0.0017078,91989.0,91977.0,0.00178022]
[1732064447368,0.0017078,91989.0,91978.0,0.01521891]
[1732064447590,0.0017078,91989.0,91977.0,0.00178022]
[1732064447591,0.0017078,91989.0,91979.0,0.01521891]
[1732064447819,0.0017078,91989.0,91980.0,0.01521891]
[1732064448097,0.0017078,91989.0,91981.0,0.01521891]
[1732064448325,0.0017078,91989.0,91982.0,0.01521891]
[1732064448549,0.0017078,91989.0,91942.0,1.06135464]
[1732064449487,0.0017078,91989.0,91943.0,0.29105265]
[1732064449710,0.0017078,91989.0,91976.0,0.01]
[1732064449936,0.0017078,91989.0,91977.0,0.01]
[1732064451049,0.0017078,91989.0,91978.0,0.00183267]
[1732064452700,0.0859,92003.0,91978.0,0.00183267]
[1732064452910,0.0759,92003.0,91978.0,0.00183267]
[1732064453994,0.0017078,91989.0,91978.0,0.00183267]
[1732064455311,0.0759,92003.0,91979.0,0.11906255]
[1732064455595,0.002,92010.0,91979.0,0.11906255]
[1732064455596,0.0753,92010.0,91990.0,0.01]
[1732064455800,0.01,92009.0,91990.0,0.01]
[1732064456652,0.0753,92010.0,91990.0,0.01]
[1732064456870,0.0753,92010.0,91989.0,0.01]
[1732064457508,0.01,92009.0,91989.0,0.01]
[1732064457922,0.0753,92010.0,91989.0,0.01]
[1732064458546,0.0753,92010.0,91995.0,0.01]
[1732064458962,0.0753,92010.0,91996.0,0.00180263]
[1732064459375,0.01,92009.0,91996.0,0.00180263]
[1732064460022,0.0753,92010.0,91996.0,0.00180263]
[1732064460648,0.0753,92010.0,91997.0,0.01518376]
[1732064460901,0.01,92009.0,91998.0,0.01518376]
[1732064461105,0.01,92009.0,91999.0,0.01518376]
[1732064461317,0.01,92009.0,92000.0,0.01518376]
[1732064461527,0.01,92009.0,92001.0,0.03949324]
[1732064461737,0.0753,92010.0,92002.0,0.03949324]
[1732064461945,0.01,92009.0,92003.0,0.03949324]
[1732064462150,0.0753,92010.0,92003.0,0.04129023]
[1732064462380,0.0753,92010.0,92004.0,0.03949324]
[1732064462603,0.0753,92010.0,92005.0,0.03950666]
[1732064463033,0.0753,92010.0,92006.0,0.00179422]
[1732064463273,0.0753,92010.0,92006.0,0.01698885]
[1732064463931,0.01,92009.0,92007.0,0.03950666]
[1732064464184,0.0753,92016.0,92008.0,0.03950666]
[1732064464397,0.01,92030.0,92009.0,0.03950666]
[1732064464623,0.01,92025.0,92022.0,0.1]
[1732064464837,0.012,92030.0,92023.0,0.03950666]
[1732064465042,0.012,92030.0,92022.0,0.1]